{"text_format":"1","workbook":"xlsx","n_sheets":7,"sheets":["Wykładowca"," Algorytm A1","ocena przeł.","Zestawienie wag","Regulamin","Załącznik 2","Załacznik 3"],"not_rendered":{"charts":0,"images":5,"macros":1,"external_links":0,"defined_names":4,"comments":2,"pivot_tables":0},"unopened":[],"bounds":{"document_bytes":16777216,"sheet_cells":100000,"rows_first":2000,"rows_last":500,"rows_between":2000,"halvings":0,"cell_chars":16384,"cell_head_chars":4096},"cells_cut":0,"cells_raw":0,"read":"whole","date_system":"1900"}

{"sheet":"Wykładowca","index":0,"n_rows":363,"n_cols":18,"rows_kept":363,"cut":false,"hidden":false,"merged":[[28,1,28,3],[35,1,35,9],[8,5,8,8],[9,5,9,8],[32,1,32,3],[32,4,32,9],[28,4,28,9],[14,1,14,3],[14,4,14,9],[12,1,12,3],[12,4,12,9],[16,6,16,7],[34,1,34,3],[34,4,34,9],[26,1,26,3],[26,4,26,9],[30,1,30,3],[30,4,30,9],[1,4,1,9],[2,4,2,9],[4,4,5,9],[7,4,7,9],[24,1,24,3],[24,4,24,9],[18,4,18,5],[18,6,18,7],[20,1,20,9],[22,1,22,3],[22,4,22,9],[16,4,16,5],[36,1,36,9],[37,1,37,9],[40,1,40,9],[44,1,44,9],[213,1,213,6],[125,1,127,6],[80,1,80,6],[41,1,41,9],[42,1,43,9],[49,1,51,6],[63,1,63,6],[55,1,55,8],[83,1,85,6],[129,1,129,6],[68,1,70,6],[92,1,92,6],[112,1,112,6],[53,1,53,6],[57,1,59,6],[64,1,64,6],[73,1,73,6],[56,1,56,8],[74,1,74,6],[65,1,65,6],[87,1,87,6],[95,1,97,6],[212,1,212,6],[176,1,178,6],[159,1,159,9],[207,1,207,6],[203,1,205,6],[38,1,38,9],[39,1,39,9],[45,1,45,9],[62,1,62,6],[47,1,47,9],[54,1,54,8],[161,1,163,6],[223,1,225,6],[270,6,271,9],[227,7,227,9],[236,1,236,6],[217,1,219,6],[99,1,99,6],[104,1,106,6],[231,1,233,6],[200,1,200,6],[257,1,257,6],[362,1,362,9],[140,1,142,6],[215,1,215,9],[268,1,268,9],[252,1,254,6],[270,1,271,4],[211,1,211,9],[360,1,360,4],[360,6,360,9],[346,1,347,9],[348,6,352,9],[227,1,227,6],[342,1,345,9],[276,1,276,9],[298,7,298,9],[324,3,324,9],[319,6,320,9],[144,1,144,6],[340,1,340,9],[272,6,272,9],[229,1,229,9],[272,1,272,4],[258,1,258,6],[321,6,321,9],[310,1,317,9],[326,7,326,9],[358,1,359,4],[358,6,359,9],[279,1,279,6],[353,6,353,9],[356,1,356,9],[324,1,324,2],[301,1,308,9],[327,7,327,9]]}
[]
[null,null,null,null,"Uniwersytet Medyczny im. Piastów Śląskich "]
[null,null,null,null,"we Wrocławiu"]
[null,null,null,null,null,null,null,null,null,null,null,null,null,null,null,null,null,"Wydział Lekarski "]
[null,null,null,null,"Arkusz oceny nauczyciela akademickiego                                                        zatrudnionego na stanowisku ",null,null,null,null,null,null,null,null,null,null,null,null,"Wydział Lekarski Kształcenia Podyplomowego"]
[null,null,null,null,null,null,null,null,null,null,null,null,null,null,null,null,null,"Wydział Lekarsko Stomatologiczny"]
[null,null,null,null,null,null,null,null,null,null,null,null,null,null,null,null,null,"Wydział Farmaceutyczny z Oddziałem Analityki Medycznej"]
[null,null,null,null,"Starszego wykładowcy/Wykładowcy",null,null,null,null,null,null,null,null,null,null,null,null,"Wydział Nauk o Zdrowiu"]
[null,null,null,null,null,"Instruktora"]
[null,null,null,null,null,"Lektora"]
[]
[]
[null,"   Jednostka organizacyjna"]
[]
[null,"   Wydział",null,null,"Wydział Lekarski "]
[null,null,null,null,null,null,null,null,null,null,null,null,"Ocena okresowa"]
[null,null,null,null,"Rodzaj oceny",null,null,null,null,null,null,null,"Ocena na wniosek kierownika"]
[null,null,null,null,null,null,null,null,null,null,null,null,"Ocena po ocenie negatywnej"]
[null,null,null,null,"Ocenie podlega dorobek za lata"]
[]
[null,"CZĘŚĆ I - Dane ocenianego"]
[]
[null,"   Imię, nazwisko"]
[]
[null,"   Tytuł lub stopień naukowy"]
[]
[null,"   Data zatrudnienia w UMW"]
[]
[null,"Data zatrudnienia na obecnie zajmowanym stanowisku"]
[]
[null,"Poprzednia ocena odbyła się w roku"]
[]
[null,"Czas nieobecności w pracy niewliczany do okresu oceny"]
[]
[null,"Liczba miesięcy pracy, za które dokonywana jest ocena"]
[null,"UWAGA! Proszę zapoznać się przed wypełnieniem!"]
[null,"Informacja o sposobie przedstawiania dorobku naukowego:"]
[null,"1. Osoba oceniana wykazuje swój dorobek w latach kalendarzowych (od stycznia do grudnia). "]
[null,"2. Minimalny okres podlegający ocenie wynosi 12 miesięcy aktywnej pracy."]
[null,"3. Okres nieobecności w pracy wynikający z przebywania na urlopie macierzyńskim, wychowawczym, zdrowotnym nie wlicza się w okres objęty oceną."]
[null,"4. Każda ankieta zawiera pełen katalog aktywności nauczyciela akademickiego na danym stanowisku."]
[null,"5. W zakładce \"Zestawienie wag\" znajdują się informacje o wagach przypisanych poszczególnym kategoriom aktywności  podlegającym ocenie w zależności od stanowiska"]
[null,"6. Oceny cząstkowe za poszczególne aktywności oraz  ocena końcowa (patrz część III Arkusza) są liczbami z przedzialu 0-6. Ocena końcowa jest sumą iloczynów ocen cząstkowych i odpowiadajacych im wag/100."]
[]
[null,"7. Działalność naukowa, dydaktyczna i organizacyjna (za wyjątkiem A6 pkt.4-8) musi być udokumentowana."]
[null,"CZĘŚĆ II - Oceny cząstkowe"]
[]
[null,"A. DZIAŁALNOŚĆ NAUKOWA"]
[]
[null,"A1. Publikacje naukowe - kryteria ilościowe"]
[null,null,null,null,null,null,null,"Waga","Ocena cząstkowa","Iloczyn"]
[null,null,null,null,null,null,null,6,null,{"$f":"H52*I52/100","v":0},null,0.81]
[]
[null,"  Publikacje - (bez listów do redakcji)",null,null,null,null,null,null,null,"Liczba"]
[null,"   1. Publikacje w czasopismach  z Impact Factor (IF) określony w bazie Journal Citation Reports  (lista A) "]
[null,"   2. Sumaryczny współczynnik wpływu IF  "]
[null,"   3. Publikacje w czasopismach naukowych  z listy  B  "]
[null,"A2. Publikacje naukowe - kryteria jakościowe"]
[null,null,null,null,null,null,null,"Waga","Ocena cząstkowa","Iloczyn"]
[null,null,null,null,null,null,null,1,{"$f":"IF(J67<=6,J67,6)","v":0},{"$f":"H60*I60/100","v":0},null,0.15]
[]
[]
[null,null,null,null,null,null,null,"Liczba","Punktacja","Iloczyn"]
[null,"1.  Liczba publikacji opublikowanych w czasopismach z listy A (posiadających IF) jako pierwszy lub korespondencyjny autor",null,null,null,null,null,null,4,{"$f":"H64*I64","v":0}]
[null,"2. Liczba cytowań (z wyłączeniem autocytowań)  według Web of Science",null,null,null,null,null,null,0.06,{"$f":"H65*I65","v":0}]
[null,"3.  Wskaźnik Hirscha według Web of Science",null,null,null,null,null,null,2,{"$f":"H66*I66","v":0}]
[null,"Punktacja razem",null,null,null,null,null,null,null,{"$f":"SUM(J64:J66)","v":0}]
[]
[null,"A 3. Udział w projektach badawczych "]
[null,null,null,null,null,null,null,"Waga","Ocena cząstkowa","Iloczyn",null,0.15]
[null,null,null,null,null,null,null,3,{"$f":"IF(J82<=6,J82,6)","v":0},{"$f":"H71*I71/100","v":0}]
[null,null,null,null,null,null,null,{"$f":"J82","v":0},{"$f":"5*(SQRT(H72/P39/M35))-5","v":{"$error":"#DIV/0!"}},{"$f":"1+5*(1-1/(1+EXP(I72)))","v":{"$error":"#DIV/0!"}}]
[]
[null,null,null,null,null,null,null,"Liczba","Punktacja","Iloczyn"]
[null,"1. Grant unijny, inne międzynarodowe"]
[null,"    a) kierownik grantu",null,null,null,null,null,null,5,{"$f":"H76*I76","v":0}]
[null,"    b) wykonawca",null,null,null,null,null,null,3,{"$f":"H77*I77","v":0}]
[null,"2. Grant krajowy (ze środków publicznych w wyniku konkursu), w tym FNP, NCN i NCBiR"]
[null,"    a) kierownik grantu",null,null,null,null,null,null,4,{"$f":"H79*I79","v":0}]
[null,"    b) wykonawca",null,null,null,null,null,null,2,{"$f":"H80*I80","v":0}]
[null,"3. Patenty, wzory użytkowe, liczba punktów zgodnie z zaświadczeniem z CITT",null,null,null,null,null,null,1,{"$f":"H81*I81","v":0}]
[null,"Punktacja razem",null,null,null,null,null,null,null,{"$f":"SUM(J76:J81)","v":0}]
[]
[null,"A 4. Udział w konferencjach naukowych"]
[null,null,null,null,null,null,null,"Waga","Ocena cząstkowa","Iloczyn"]
[null,null,null,null,null,null,null,1,{"$f":"IF(J94<=6,J94,6)","v":0},{"$f":"H86*I86/100","v":0}]
[]
[null,null,null,null,null,null,null,"Liczba","Punktacja","Iloczyn"]
[null,"1. Liczba zagranicznych lub międzynarodowych"]
[null,"    a) czynna prezentacja pracy lub prowadzenie sesji",null,null,null,null,null,null,3,{"$f":"H90*I90","v":0}]
[null,"    b) współautorstwo",null,null,null,null,null,null,0.2,{"$f":"H91*I91","v":0}]
[null,"  2. Liczba krajowych - tylko udział czynny lub prowadzenie sesji",null,null,null,null,null,null,1,{"$f":"H92*I92","v":0}]
[null,"3. Czynny udział w Dolnosląskim Festiwalu Nauki ",null,null,null,null,null,null,2,{"$f":"H93*I93","v":0}]
[null,"Punktacja razem",null,null,null,null,null,null,null,{"$f":"SUM(J89:J93)","v":0}]
[]
[null,"A 5. Staż naukowy (z wyłączeniem staży specjalizacyjnych) min. 2 tygodnie"]
[null,null,null,null,null,null,null,"Waga","Ocena cząstkowa","Iloczyn"]
[null,null,null,null,null,null,null,1,{"$f":"IF(J103<=6,J103,6)","v":0},{"$f":"H98*I98/100","v":0}]
[]
[null,null,null,null,null,null,null,"Liczba","Punktacja","Iloczyn"]
[null,"1. Staż naukowy zagraniczny",null,null,null,null,null,null,4,{"$f":"H101*I101","v":0}]
[null,"2. Staż naukowy krajowy",null,null,null,null,null,null,2,{"$f":"H102*I102","v":0}]
[null,"Punktacja razem",null,null,null,null,null,null,null,{"$f":"SUM(J101:J102)","v":0}]
[]
[" ","A 6. Praca na rzecz rozwoju kadry naukowo-dydaktycznej"]
[null,null,null,null,null,null,null,"Waga","Ocena cząstkowa","Iloczyn"]
[null,null,null,null,null,null,null,1,{"$f":"IF(J124<=6,J124,6)","v":0},{"$f":"H107*I107/100","v":0}]
[]
[null,null,null,null,null,null,null,"Liczba","Punktacja","Iloczyn"]
[null,"1.Promotor pomocniczy pracy doktorskiej (po jej ukończeniu)",null,null,null,null,null,null,3,{"$f":"H110*I110","v":0}]
[null,"2.Recenzja pracy magisterskiej",null,null,null,null,null,null,0.3,0]
[null,"3.Recenzja pracy licencjackiej",null,null,null,null,null,null,0.2,0]
[null,"4.Recenzja projektów badawczych i raportów zlec. NCN, NCBiR, FNP",null,null,null,null,null,null,0.3,0]
[null,"5.Recenzja projektów badawczych dla młodych naukowców",null,null,null,null,null,null,0.1,0]
[null,"6.Recenzja do czasopism zagranicznych",null,null,null,null,null,null,0.3,0]
[null,"7. Recenzja do polskich czasopism w języku obcym",null,null,null,null,null,null,0.2,0]
[null,"8.Recenzja do czasopism krajowych w języku polskim",null,null,null,null,null,null,0.1,0]
[null,"9.Recenzja monografii",null,null,null,null,null,null,0.3,0]
[null,"10.Recenzja skryptu",null,null,null,null,null,null,0.1,0]
[null,"11.Recenzja podręcznika",null,null,null,null,null,null,0.3,0]
[null,"12. Udział w koordynacji programów terapeutycznych"]
[null,"      a) międzynarodowych",null,null,null,null,null,null,0.4,0]
[null,"      b) krajowych",null,null,null,null,null,null,0.2,0]
[null,"Punktacja razem",null,null,null,null,null,null,null,{"$f":"SUM(J110:J123)","v":0}]
[]
[null,"A 7. Członkostwo w komitetach redakcyjnych i naukowych czasopism (załączyć wykaz)"]
["  ",null,null,null,null,null,null,"Waga","Ocena cząstkowa","Iloczyn"]
[null,null,null,null,null,null,null,1,{"$f":"IF(J139<=6,J139,6)","v":0},{"$f":"H128*I128/100","v":0}]
[]
[null,null,null,null,null,null,null,"Liczba","Punktacja","Iloczyn"]
[null,"1. Udział w kolegiach redakcyjnych czasopism naukowych (lista A)"]
[null,"     a) redaktor naczelny / przewodniczący rady naukowej",null,null,null,null,null,null,5,{"$f":"H132*I132","v":0}]
[null,"     b) zastępca red. naczelnego, redaktor prowadzący/redaktor sekcji lub sekretarz redakcji",null,null,null,null,null,null,4,{"$f":"H133*I133","v":0}]
[null,"     c) członek komitetu redakcyjnego / członek rady naukowej",null,null,null,null,null,null,2,{"$f":"H134*I134","v":0}]
[null,"2. Udział w kolegiach redakcyjnych czasopism naukowych (lista B)",null,null,null,null,null,null,null," "]
[null,"     a) redaktor naczelny / przewodniczący rady naukowej",null,null,null,null,null,null,3,{"$f":"H136*I136","v":0}]
[null,"     b) zastępca red. naczelnego, redaktor prowadzący/redaktor sekcji lub sekretarz redakcji",null,null,null,null,null,null,2,{"$f":"H137*I137","v":0}]
[null,"     c) członek komitetu redakcyjnego / członek rady naukowej",null,null,null,null,null,null,1,{"$f":"H138*I138","v":0}]
[null,"Punktacja razem",null,null,null,null,null,null,null,{"$f":"SUM(J132:J138)","v":0}]
["                      "]
[null,"A 8. Nagrody i awanse naukowe "]
[null,null,null,null,null,null,null,"Waga","Ocena cząstkowa","Iloczyn"]
[null,null,null,null,null,null,null,1,{"$f":"IF(J157<=6,J157,6)","v":0},{"$f":"H143*I143/100","v":0}]
[]
[null,null,null,null,null,null,null,"Liczba","Punktacja","Iloczyn"]
[null,"1. Nagrody międzynarodowe",null,null,null,null,null,null,6,{"$f":"H146*I146","v":0}]
[null,"2. Indywidualna Ministra lub stypendium Ministra/FNP",null,null,null,null,null,null,5,{"$f":"H147*I147","v":0}]
[null,"3. Zespołowa Ministra",null,null,null,null,null,null,4,{"$f":"H148*I148","v":0}]
[null,"4. Indywidualna JM Rektora UMW",null,null,null,null,null,null," "]
[null,"    a) I stopnia",null,null,null,null,null,null,3,{"$f":"H150*I150","v":0}]
[null,"    b) II stopnia",null,null,null,null,null,null,2,0]
[null,"    c) zespołowa",null,null,null,null,null,null,1,0]
[null,"5. Nagrody krajowych towarzystw naukowych",null,null,null,null,null,null,3,0]
[null,"6. Nagrody inne, jakie ______________________________________________?",null,null,null,null,null,null,1,0]
[null,"7. Stopień dr ",null,null,null,null,null,null,5,0]
[null,"8. Specjalizacja",null,null,null,null,null,null,4,0]
[null,"Punktacja razem",null,null,null,null,null,null,null,{"$f":"SUM(J146:J156)","v":0}]
[]
[]
[null,"B. DZIAŁALNOŚĆ DYDAKTYCZNA "]
[]
[null," B 1. Publikacje dydaktyczne "]
[null,null,null,null,null,null,null,"Waga","Ocena cząstkowa","Iloczyn"]
[null,null,null,null,null,null,null,35,{"$f":"IF(J175<=6,J175,6)","v":0},{"$f":"H164*I164/100","v":0}]
[]
[null,null,null,null,null,null,null," Liczba","Punktacja","Iloczyn"]
[null,"1. Autor podręcznika lub monografii*",null,null,null,null,null,null,6,{"$f":"H167*I167","v":0}]
[null,"2. Redaktor podręcznika-redakcja zbiorowa",null,null,null,null,null,null,4,0]
[null,"3. Redaktor tłumaczenia podręcznika",null,null,null,null,null,null,2,0]
[null,"4. Rozdział w podręczniku lub monografii*",null,null,null,null,null,null,2,0]
[null,"5. Tłumaczenie rozdziału",null,null,null,null,null,null,1,0]
[null,"6. Autor skryptu*",null,null,null,null,null,null,3,0]
[null,"7. Rozdział w skrypcie*",null,null,null,null,null,null,1,0]
[null,"*wydawnictwa w języku angielskim o zasięgu międzynarodowym – liczba pkt. x 2"]
[null,"Punktacja razem",null,null,null,null,null,null,null,{"$f":"SUM(J167:J174)","v":0}]
[]
[null,"B 2. Prace na rzecz studentów"]
[null,null,null,null,null,null,null,"Waga","Ocena cząstkowa","Iloczyn"]
[null,null,null,null,null,null,null,10,{"$f":"IF(J202<=6,J202,6)","v":0},{"$f":"H179*I179/100","v":0}]
[]
[null,null,null,null,null,null,null,"Liczba","Punktacja","Iloczyn"]
[null,"1. Opiekun Studenckiego Koła Naukowego (SKN)",null,null,null,null,null,null,2,{"$f":"H182*I182","v":0}]
[null,"2. Organizacja studenckiej konferencji naukowej - członek komitetu organizacyjnego",null,null,null,null,null,null," "]
[null,"    a) krajowa",null,null,null,null,null,null,2,0]
[null,"    b) międzynarodowa",null,null,null,null,null,null,4,0]
[null,"3. Nagroda na konferencji za wygłoszoną pracę z SKN (opiekun koła lub pracy)",null,null,null,null,null,null,1,0]
[null,"4. Wyróżnienie na konferencji za wygłoszoną pracę z SKN (opiekun koła lub pracy)",null,null,null,null,null,null,0.5,0]
[null,"5. Czynny udział w konferencji naukowej (opiekun koła lub pracy, jury)",null,null,null,null,null,null,1,0]
[null,"6. Organizacja studenckiego obozu naukowego lub integracyjnego",null,null,null,null,null,null,1,0]
[null,"7. Opiekun roku ",null,null,null,null,null,null,5,0]
[null,"8. Opiekun Indywidualnego Toku Studiów (ITS) ",null,null,null,null,null,null,2,0]
[" ","9. Opiekun praktyki wakacyjnej za każdego studenta",null,null,null,null,null,null,0.1,0]
[null,"10. Opiekun praktyki wakacyjnej w ramach English Division za każdego studenta",null,null,null,null,null,null,0.2,0]
[null,"11. Adiunkt dydaktyczny jednostki",null,null,null,null,null,null,4,0]
[null,"12. Koordynator przedmiotu (powołany przez dziekana)",null,null,null,null,null,null,4,0]
[null,"13. Promotor/opiekun prac magisterskich (zał. wykaz) (za pracę)",null,null,null,null,null,null,1.5,0]
[null,"14. Promotor/opiekun prac licencjackich (zał. wykaz) (za pracę)",null,null,null,null,null,null,1,{"$f":"H197*I197","v":0}]
[null,"15. Koordynator programu ERASMUS ",null,null,null,null,null,null,5,{"$f":"H198*I198","v":0}]
[null,"16. Organizacja zawodów sportowych międzyuczelnianych / olimpiad językowych",null,null,null,null,null,null,3,{"$f":"H199*I199","v":0}]
[null,"17. Nagrody za wygrane międzyuczelniane zawody sportowe / olimpiady językowe",null,null,null,null,null,null,2,{"$f":"H200*I200","v":0}]
[null,"18. Inna działalność na rzecz studentów (np. przygotowanie materiałów dydaktycznych) - 1pkt. za każdą działalność",null,null,null,null,null,null,1,{"$f":"H201*I201","v":0}]
[null,"Punktacja razem",null,null,null,null,null,null,null,{"$f":"SUM(J182:J201)","v":0}]
[]
[null,"B 3. Szkolenie podyplomowe"]
[null,null,null,null,null,null,null,"Waga","Ocena cząstkowa","Iloczyn"]
[null,null,null,null,null,null,null,10,{"$f":"IF(J217<=6,J217,6)","v":0},{"$f":"H206*I206/100","v":0}]
[]
[null,null,null,null,null,null,null,"Liczba","Punktacja","Iloczyn"]
[null,"1. Udział w komitetach organizac. i/lub nauk. konferencji – sympozjów-zjazdów*"]
[null,"    a) przewodniczący",null,null,null,null,null,null,4,{"$f":"H210*I210","v":0}]
[null,"    b) członek",null,null,null,null,null,null,2,{"$f":"H211*I211","v":0}]
[null,"2. Organizacja kursów i studiów podyplomowych na zlecenie: Uczelni, CMPK, DCZP"]
[null,"    a) kierownik kursu – za każdy kurs",null,null,null,null,null,null,2,{"$f":"H213*I213","v":0}]
[null,"    b) wykładowca – liczba wykładów",null,null,null,null,null,null,1,{"$f":"H214*I214","v":0}]
[null,"3. Kierownik zakończonej specjalizacji",null,null,null,null,null,null,2,{"$f":"H215*I215","v":0}]
[null,"*w przypadku międzynarodowych komitetów - liczba punktów x 2 "]
[null,"Punktacja razem",null,null,null,null,null,null,null,{"$f":"SUM(J209:J216)","v":0}]
[null,"B 4.Nagrody dydaktyczne"]
[null,null,null,null,null,null,null,"Waga","Ocena cząstkowa","Iloczyn"]
[null,null,null,null,null,null,null,5,{"$f":"J222","v":0},{"$f":"H220*I220/100","v":0}]
[]
[null,"Nagrody dydaktyczne",null,null,null,null,null,null,6,{"$f":"H222*I222","v":0}]
[]
[null,"B 5. Ocena studentów "]
[null,null,null,null,null,null,null,"Waga","Ocena cząstkowa","Iloczyn"]
[null,null,null,null,null,null,null,10,{"$f":"H228*1.2","v":0},{"$f":"H226*I226/100","v":0}]
[]
[null,"Ocena studentów "]
[]
[null,"C. DZIAŁALNOŚĆ ORGANIZACYJNA"]
[]
[null,"C 1. Praca na rzecz Uczelni"]
[null,null,null,null,null,null,null,"Waga","Ocena cząstkowa","Iloczyn"]
[null,null,null,null,null,null,null,10,{"$f":"IF(J251<=6,J251,6)","v":0},{"$f":"H234*I234/100","v":0}]
[]
[]
[null,null,null,null,null,null,null,"Liczba","Punktacja","Iloczyn"]
[null,"1. Udział w pracach Komisji Rektorskiej",null,null,null,null,null,null,4,{"$f":"H238*I238","v":0}]
[null,"2. Udział w pracach Komisji Senackiej",null,null,null,null,null,null,4,0]
[null,"3. Udział w pracach Komisji Wydziałowej",null,null,null,null,null,null,3,0]
[null,"4. Udział w pracach Wydziałowej Komisji Rekrutacyjnej",null,null,null,null,null,null,4,0]
[null,"5. Członek Senatu",null,null,null,null,null,null,4,0]
[null,"6. Członek Rady Wydziału",null,null,null,null,null,null,3,0]
[null,"7. Pełnomocnik Rektora",null,null,null,null,null,null,4,{"$f":"H244*I244","v":0}]
[null,"8. Pełnomocnik Dziekana",null,null,null,null,null,null,3,0]
[null,"9. Rzecznik Dyscyplinarny",null,null,null,null,null,null,4,0]
[null,"10.Koordynator zajęć praktycznych i praktyk zawodowych",null,null,null,null,null,null,2,0]
[null,"11. Członek komisji wybieranych",null,null,null,null,null,null,1,0]
[null,"12. Nagrody organizacyjne",null,null,null,null,null,null,1,0]
[null,"13. Inne udokumentowane prace na rzecz Uczelni",null,null,null,null,null,null,1,0]
[" ","Punktacja razem",null,null,null,null,null,null,null,{"$f":"SUM(J238:J250)","v":0}]
[]
[null,"C 2. Aktywność w towarzystwach i  instytucjach naukowych"]
[null,null,null,null,null,null,null,"Waga","Ocena cząstkowa","Iloczyn"]
[null,null,null,null,null,null,null,5,{"$f":"IF(J267<=6,J267,6)","v":0},{"$f":"H255*I255/100","v":0}]
[]
[]
[null,null,null,null,null,null,null,"Liczba","Punktacja","Iloczyn"]
[null,"1. Funkcje w instytucjach naukowych na szczeblu ogólnopolskim (np. MNiSzW, MZ, NCN, NCBiR, FNP, PAN, PAU)",null,null,null,null,null,null,6,{"$f":"H259*I259","v":0}]
[null,"2. W towarzystwach naukowych*"]
[null,"    a) sekretarz",null,null,null,null,null,null,4,{"$f":"H261*I261","v":0}]
[null,"    b) członek zarządu głównego",null,null,null,null,null,null,2,{"$f":"H262*I262","v":0}]
[null,"3. W oddziałach towarzystw naukowych",null,null,null,null,null,null," "]
[null,"    a) sekretarz",null,null,null,null,null,null,3,{"$f":"H264*I264","v":0}]
[null,"    b) członek zarządu",null,null,null,null,null,null,1,{"$f":"H265*I265","v":0}]
[null,"*w przypadku międzynarodowych towarzystw naukowych - liczba punktów x 2 "]
[null,"Punktacja razem",null,null,null,null,null,null,null,{"$f":"SUM(J259:J265)","v":0}]
[]
[null,"Do arkusza dołączam oświadczenie o przestrzeganiu praw własności intelektualnej"]
[null,null,null,"                       "]
[null,null,null,null,null,null,"                       "]
[]
[null,"Oświadczam, że podane wyżej dane zgodne są ze stanem faktycznym.                                                                           Data i podpis osoby ocenianej",null,null,null,null,"Poświadczenie przedstawionych wyżej informacji i danych przez bezpośredniego przełożonego, data i podpis"]
[]
[]
[]
[null,"OCENA BEZPOŚREDNIEGO PRZEŁOŻONEGO"]
[null,null,null,null,null,null,null,null,null,null,null,null,null,null,null,null,"TAK"]
[null,null,null,null,null,null,null,null,null,null,null,null,null,null,null,null,"NIE"]
[null,null,null,null,null,null,null,null,null,"Punktacja"]
[null,"Poszukiwanie rozwiązań",null,null,null,null,null,null,null,0]
[null,"Samodzielność",null,null,null,null,null,null,null,0]
[null,"Współpraca",null,null,null,null,null,null,null,0]
[null,"Dokładność, rzetelność, systematyczność",null,null,null,null,null,null,null,0]
[null,"Umiejętność organizowania pracy",null,null,null,null,null,null,null,0]
[null,"Komunikatywność",null,null,null,null,null,null,null,0]
[null,"Zaangażowanie - identyfikacja z celami jednostek",null,null,null,null,null,null,null,0]
[" ","Doskonalenie, podnoszenie kwalifikacji",null,null,null,null,null,null,null,0]
[" ","Punktacja średnia",null,null,null,null,null,null,null,{"$f":"AVERAGE(J281:J288)","v":0}]
[" "]
[null,"Skala:"]
[null,"1  -  Brak kompetencji: rezultaty pracy pracownika są nieakceptowane i wymagają natychmiastowej poprawy."]
[null,"2 -  Słaby/Uczący się: dokonania pracownika są poniżej wymagań na stanowisku, które zajmuje."]
[null,"3  - Dobry: oczekiwania są spełnione w 100%.",null,null,null,null,null,null,null,null,null,28]
[null,"4 -  Bardzo dobry: działania pracownika często przekraczają standard we wszystkich obszarach."]
[null,"5 -  Wybitny: działania pracownika zdecydowanie przekraczają standard we wszystkich obszarach.",null,null,null,null,null,null,null,null,null,{"$f":"H327*24/L294","v":0}]
[]
[]
[null,"Oceniany spełnia wymogi etyki zawodowej:",null,null,null,null,null,"TAK"]
[]
[null,"Uwagi do wypełnionej ankiety:"]
[]
[]
[]
[]
[]
[]
[]
[]
[null,"Ocena opisowa:"]
[]
[]
[]
[]
[]
[]
[]
[]
[]
[]
[]
[null,null,null,null,null,null,"data, pieczęć i podpis bezpośredniego przełożonego"]
[]
[]
[null,"CZĘŚĆ III",null,"OCENA  WYLICZONA NA PODSTAWIE ARKUSZA OCEN "]
[]
[null,null,null,null,null,null,null,{"$f":"(J52+J60+J71+J86+J98+J107+J128+J143+J164+J179+J206+J220+J226+J234+J255)","v":0}]
[null,null,null,null,null,null,null,{"$f":"H327/6","v":0}]
[]
[null,null,null,null,null,null,null,"Ocena wyróżniająca",null," => 71%"]
[null,null,null,null,null,null,null,"Ocena bardzo dobra",null," => 56-70%"]
[null,null,null,null,null,null,null,"Ocena dobra",null," => 41-55%"]
[null,null,null,null,null,null,null,"Ocena zadowalająca",null," => 21-40%"]
[null,null,null,null,null,null,null,"Ocena negatywna",null," =< 20%"]
[]
[null,null,null,null,"osiągnięty wynik",null,"wartości maksymalne"]
[null,"A - działalność naukowa",null,null,{"$f":"J52+J60+J71+J86+J98+J107+J128+J143","v":0},{"$f":"E337/G337","v":0},0.9,1]
[null,"B - działalność dydaktyczna",null,null,{"$f":"J164+J179+J206+J220+J226","v":0},{"$f":"E338/G338","v":0},4.2,1]
[" ","C - działalność organizacyjna",null,null,{"$f":"J234+J255","v":0},{"$f":"E339/G339","v":0},0.9,1]
[]
[null,"CZĘŚĆ IV - OCENA WYDZIAŁOWEJ KOMISJI OCENY KADRY"]
[]
[null,"Ocena końcowa i uwagi Komisji:"]
[]
[]
[]
[]
[]
[]
[]
[]
[]
[]
[null,null,null,null,null,null,"data, pieczęć i podpis przewodniczącego Wydziałowej Komisji Oceny Kadry"]
[]
[]
[null,"Dziekan właściwego wydziału, a w pozostałych przypadkach przewodniczący komisji oceniającej, w terminie 10 dni od dokonania oceny, przedstawia wynik oceny osobie ocenianej.\nOd oceny komisji pracownikowi, a także jego bezpośredniemu przełożonemu służy odwołanie, w terminie 14 dni od dnia powiadomienia o wyniku oceny, do Senackiej Komisji Rozwoju Kadry Naukowo Dydaktycznej. "]
[]
[null,"Z oceną zostałam/łem zapoznany.",null,null,null,null,"Z oceną zostałam/łem zapoznany."]
[]
[null,"Data i podpis osoby ocenianej",null,null,null,null,"Data i podpis bezpośredniego przełożonego"]
[]
[null,"©  Arkusz przeznaczony jest do przeprowadzenia oceny nauczycieli akademickich Uniwersytetu Medycznego we Wrocławiu w roku 2015"]

{"sheet":" Algorytm A1","index":1,"n_rows":173,"n_cols":3,"rows_kept":173,"cut":false,"hidden":false,"merged":[]}
[]
[null,"Algorytm do ustalenia liczby punktów za publikacje naukowe  A1"]
[]
[null,"Asystent","ocena za 12-18 miesięcy"]
[null,"Liczba punktów ","Opis "]
[]
[null,0,"brak publikacji w czasopismach z listy A i B"]
[null,1,"1 praca opublikowana w czasopismie z listy B"]
[null,2,"2 prace opublikowane w czasopismach z listy B"]
[null,3,"3 prace opublikowane w czasopismach z listy B "]
[null,4,"4 prace opublikowane w czasopismach z listy B lub lub co najmniej 1 praca opublikowana w czasopiśmie z listy A "]
[null,5,"powyżej 4 prac opublikowanych w czasopismach z listy B lub minimum 2 prace opublikowane w czasopismach z listy A"]
[null,6,"łączny IF za opublikowane prace powyżej 2"]
[]
[null,"Asystent","ocena za okres 19-30 miesięcy"]
[null,"Liczba punktów ","Opis "]
[]
[null,0,"brak publikacji w czasopismach z listy A i B"]
[null,1,"1 praca opublikowana w czasopismie z listy B"]
[null,2,"2 prace opublikowane w czasopismach z listy B"]
[null,3,"3 prace opublikowane w czasopismach z listy B "]
[null,4,"4 prace opublikowane w czasopismach z listy B lub lub co najmniej 1 praca opublikowana w czasopiśmie z listy A "]
[null,5,"powyżej 4 prac opublikowanych w czasopismach z listy B lub minimum 2 prace opublikowane w czasopismach z listy A"]
[null,6,"łączny IF za opublikowane prace powyżej 2"]
[]
[null,"Asystent","ocena za okres 31-42 miesiące"]
[null,"Liczba punktów ","Opis "]
[]
[null,0,"brak publikacji w czasopismach z listy A i B"]
[null,1,"1 praca opublikowana w czasopismie z listy B"]
[null,2,"2-3 prace opublikowane w czasopismach z listy B"]
[null,3,"3-4 prace opublikowane w czasopismach z listy B "]
[null,4,"5-6 prac opublikowanych w czasopismach z listy B lub lub co najmniej 1 praca opublikowana w czasopiśmie z listy A "]
[null,5,"powyżej 6 prac opublikowanych w czasopismach z listy B lub minimum 3 prace opublikowane w czasopismach z listy A"]
[null,6,"łączny IF za opublikowane prace powyżej 3"]
[]
[null,"Asystent","ocena za okres 43 i więcej miesięcy"]
[null,"Liczba punktów ","Opis "]
[]
[null,0,"brak publikacji w czasopismach z listy A i B"]
[null,1,"2 prace opublikowane w czasopismach z listy B"]
[null,2,"3-4 prace opublikowane w czasopismach z listy B"]
[null,3,"5-6 prac opublikowanych w czasopismach z listy B "]
[null,4,"7-8 prac opublikowanych w czasopismach z listy B lub lub co najmniej 2 prace opublikowane w czasopismach z listy A "]
[null,5,"powyżej 8 prac opublikowanych w czasopismach z listy B lub minimum 4 prace opublikowane w czasopismach z listy A"]
[null,6,"łączny IF za opublikowane prace powyżej 4"]
[]
[null,"Adiunkt","ocena za 12-18 miesięcy"]
[null,"Liczba punktów ","Opis "]
[]
[null,0,"brak publikacji w czasopismach z listy A i B"]
[null,1,"1 praca opublikowana w czasopismie z listy B"]
[null,2,"2 prace opublikowane w czasopismach z listy B"]
[null,3,"3 prace opublikowane w czasopismach z listy B lub co najmniej 1 praca opublikowana w czasopismie z listy A"]
[null,4,"powyżej 3 prac opublikowanych w czasopismach z punktacją B lub 2 prace opublikowane w czasopismach z listy A"]
[null,5,"powyżej 2 prac opublikowanych w czasopismach z listy A lub łączny IF za opublikowane prace w zakresie 1-2 "]
[null,6,"łączny IF za opublikowane prace powyżej 2"]
[]
[]
[null,"Adiunkt","ocena za okres 19-30 miesięcy"]
[null,"Liczba punktów ","Opis "]
[]
[null,0,"brak publikacji w czasopismach z listy A i B"]
[null,1,"1 praca opublikowana w czasopismie z listy B"]
[null,2,"2-3 prace opublikowane w czasopismach z listy B"]
[null,3,"4-6 prac opublikowanych w czasopismach z listy B lub co najmniej 1 praca opublikowana w czasopismie z listy A"]
[null,4,"powyżej 6 prac opublikowanych w czasopismach z punktacją B lub 2-3 prace opublikowane w czasopismach z listy A"]
[null,5,"powyżej 3 prac opublikowanych w czasopismach z listy A lub łączny IF za opublikowane prace w zakresie 3-5 "]
[null,6,"łączny IF za opublikowane prace powyżej 5"]
[]
[null,"Adiunkt","ocena za okres 31-42 miesięcy"]
[null,"Liczba punktów ","Opis "]
[]
[null,0,"brak publikacji w czasopismach z listy A i B"]
[null,1,"1 praca opublikowana w czasopismie z listy B"]
[null,2,"2-4 prace opublikowane w czasopismach z listy B"]
[null,3,"5-9 prac opublikowanych w czasopismach z listy B lub co najmniej 1 praca opublikowana w czasopismie z listy A"]
[null,4,"powyżej 9 prac opublikowanych w czasopismach z punktacją B lub 2-4 prace opublikowane w czasopismach z listy A"]
[null,5,"powyżej 4 prac opublikowanych w czasopismach z listy A lub łączny IF za opublikowane prace w zakresie 4-7"]
[null,6,"łączny IF za opublikowane prace powyżej 7"]
[]
[null,"Adiunkt","ocena za okres 43 i więcej miesięcy"]
[null,"Liczba punktów ","Opis "]
[]
[null,0,"brak publikacji w czasopismach z listy A i B"]
[null,1,"1-2 prace opublikowane w czasopismach z listy B"]
[null,2,"4-6 prac opublikowanych w czasopismach z listy B"]
[null,3,"7-12 prac opublikowanych w czasopismach z listy B lub co najmniej 2 prace opublikowane w czasopismach z listy A"]
[null,4,"powyżej 12 prac opublikowanych w czasopismach z punktacją B lub 3-6 prac opublikowanych w czasopismach z listy A"]
[null,5,"powyżej 6 prac opublikowanych w czasopismach z listy A lub łączny IF za opublikowane prace w zakresie 6-10 "]
[null,6,"łączny IF za opublikowane prace powyżej 10"]
[]
[null,"Profesor","ocena za 12-18 miesięcy"]
[null,"Liczba punktów ","Opis "]
[]
[null,0,"brak publikacji w czasopismach z listy A i B"]
[null,1,"1 praca opublikowana w czasopismie z listy B"]
[null,2,"2-3 prace opublikowane w czasopismach z listy B"]
[null,3,"4-6 prac opublikowanych w czasopismach z listy B lub co najmniej 1 praca opublikowana w czasopismie z listy A"]
[null,4,"powyżej 6 prac opublikowanych w czasopismach z punktacją B lub 2-3 prace opublikowane w czasopismach z listy A"]
[null,5,"powyżej 3 prac opublikowanych w czasopismach z listy A lub łączny IF za opublikowane prace w zakresie 3-5 "]
[null,6,"łączny IF za opublikowane prace powyżej 5"]
[]
[]
[null,"Profesor","ocena za okres 19-30 miesięcy"]
[null,"Liczba punktów ","Opis "]
[]
[null,0,"brak publikacji w czasopismach z listy A i B"]
[null,1,"1-2 prace opublikowana w czasopismach z listy B"]
[null,2,"3-5 prac opublikowanych w czasopismach z listy B"]
[null,3,"6-8 prac opublikowanych w czasopismach z listy B lub co najmniej 2 prace opublikowane w czasopismach z listy A"]
[null,4,"powyżej 8 prac opublikowanych w czasopismach z punktacją B lub 3-5 prace opublikowane w czasopismach z listy A"]
[null,5,"powyżej 5 prac opublikowanych w czasopismach z listy A lub łączny IF za opublikowane prace w zakresie 6-10 "]
[null,6,"łączny IF za opublikowane prace powyżej 10"]
[]
[null,"Profesor","ocena za okres 31-42 miesięcy"]
[null,"Liczba punktów ","Opis "]
[]
[null,0,"brak publikacji w czasopismach z listy A i B"]
[null,1,"1-3 prace opublikowana w czasopismach z listy B"]
[null,2,"4-7 prac opublikowanych w czasopismach z listy B"]
[null,3,"8-11 prac opublikowanych w czasopismach z listy B lub co najmniej 3 prace opublikowane w czasopismach z listy A"]
[null,4,"powyżej 11 prac opublikowanych w czasopismach z punktacją B lub 4-7 prace opublikowane w czasopismach z listy A"]
[null,5,"powyżej 7 prac opublikowanych w czasopismach z listy A lub łączny IF za opublikowane prace w zakresie 9-15 "]
[null,6,"łączny IF za opublikowane prace powyżej 15"]
[]
[null,"Profesor","ocena za okres 43 i więcej miesięcy"]
[null,"Liczba punktów ","Opis "]
[]
[null,0,"brak publikacji w czasopismach z listy A i B"]
[null,1,"2-4 prace opublikowana w czasopismach z listy B"]
[null,2,"5-10 prac opublikowanych w czasopismach z listy B"]
[null,3,"11-16 prac opublikowanych w czasopismach z listy B lub co najmniej 4 prace opublikowane w czasopismach z listy A"]
[null,4,"powyżej 16 prac opublikowanych w czasopismach z punktacją B lub 5-10 prace opublikowane w czasopismach z listy A"]
[null,5,"powyżej 10 prac opublikowanych w czasopismach z listy A lub łączny IF za opublikowane prace w zakresie 12-20"]
[null,6,"łączny IF za opublikowane prace powyżej 20"]
[]
[]
[null,"Instruktor/lektor"]
[null,"Liczba punktów ","Opis "]
[]
[null,0,"brak publikacji w czasopismach z listy A i B"]
[null,1,"1 praca opublikowana w czasopismie z listy B"]
[null,2,"2 prace opublikowane w czasopismach z listy B"]
[null,3,"3 prace opublikowane w czasopismach z listy B"]
[null,4,"4 prace opublikowane w czasopismach z listy B"]
[null,5,"5 prac i wiecej opublikowanych w czasopismach z listy B"]
[null,6,"co najmniej 1 praca opublikowana w czasopismie z listy A"]
[]
[null,"Starszy wykładowca/wykładowca"]
[null,"Liczba punktów ","Opis "]
[]
[null,0,"brak publikacji w czasopismach z listy A i B"]
[null,1,"1 praca opublikowana w czasopismie z listy B"]
[null,2,"2 prace opublikowane w czasopismach z listy B"]
[null,3,"3 prace opublikowane w czasopismach z listy B"]
[null,4,"4 prace opublikowane w czasopismach z listy B"]
[null,5,"5 prac i wiecej opublikowanych w czasopismach z listy B lub 1 praca opublikowana w czasopismie z listy A"]
[null,6,"co najmniej 2 prace opublikowane w czasopismach z listy A"]
[]
[null,"Algorytm do ustalenia liczby punktów za patenty (CITT)  A3 - p.4"]
[]
[null,0,"0 pkt."]
[null,1,"1- 2 pkt. "]
[null,2,"3-4 pkt."]
[null,3,"5-6 pkt."]
[null,4,"7-8 pkt., minimum 1 patent"]
[null,5,"9 pkt. i wiecej, minimum 1 patent,  ale bez wdrozenia wynalazku"]
[null,6,"wdrożenie wynalazku"]
[]
[null,null,"1 punkt za zgłoszenie"]
[null,null,"3 punkty za uzyskany patent"]
[null,null,"10 punktów za wdrożenie"]

{"sheet":"ocena przeł.","index":2,"n_rows":9,"n_cols":1,"rows_kept":9,"cut":false,"hidden":false,"merged":[]}
[]
["1. POSZUKIWANIE ROZWIĄZAŃ  Dostrzeganie, definiowanie, dokładna analiza problemu oraz poszukiwanie rozwiązań w oparciu o racjonalne przesłanki. Szukanie twórczych, skutecznych rozwiązań poza rzeczami pozornie oczywistymi i łatwo dostępnymi."]
["2. SAMODZIELNOŚĆ - Samodzielność, branie pełnej odpowiedzialności za powierzoną pracę. Samokontrola, praca bez nadzoru, wykonywana we własnym zakresie. Zdobywanie informacji/środków potrzebnych do realizacji zadania. Przejawia inicjatywę w działaniu."]
["3. WSPÓŁPRACA - Świadome działania, kooperacja służące realizacji celów nadrzędnych poprzez nawiązywanie współpracy z osobami i jednostkami organizacyjnymi w obrębie zespołu, Uczelni. Sprawne komunikowanie się ze współpracującą grupą osób.  "]
["4. DOKŁADNOŚĆ, RZETELNOŚĆ, SYSTEMATYCZNOŚĆ - Rzetelność, staranność i dokładność w realizacji nawet monotonnych zadań. Dbałość o szczegóły, terminowość oraz bezbłędne wykonywanie powierzonej  pracy. Staranne, dokładne i efektywne wykonywanie zadań umożliwiające zrealizowanie wyznaczonych celów na możliwie najwyższym poziomie. Eliminowanie lub minimalizowanie ilości popełnianych błędów. Samokontrola w zakresie jakości i stałe dążenie do podnoszenia standardów wykonania powierzonych zadań"]
["5. UMIEJĘTNOŚĆ ORGANIZOWANIA PRACY - Wyznaczanie krótko- i długoterminowych celów,  planowanie czasu potrzebnego do ich osiągnięcie i zapewnienie zasobów do ich realizacji (czas, narzędzia, ludzie etc.). Koordynowanie działań, tworzenie harmonogramów, przewidywanie i usuwanie przeszkód na drodze do realizacji zadań."]
["6. KOMUNIKATYWNOŚĆ - ZARZĄDZANIE INFORMACJĄ - Dostarczanie innym informacji potrzebnych do sprawnego realizowania zadań. Udzielanie informacji we właściwym czasie i we właściwy sposób tak, aby inni mogli sprawnie funkcjonować, podejmować właściwe decyzje."]
["7. ZAANGAŻOWANIE, IDENTYFIKACJA Z CELEM JEDNOSTKI - Identyfikacja z celami i wartościami Uczelni . Gotowość do podjęcia znacznego wysiłku na rzecz Uczelni. Dbałość o sprawne i efektywne wykonanie powierzonych zadań. Przywiązywanie dużej wagi do spełnienia standardów jakości, dotrzymywanie terminów i osiąganie założonych wyników."]
["8. DOSKONALENIE, PODNOSZENIE KWALIFIKACJI  - Zaangażowanie we własny rozwój zawodowy. Planowanie własnej kariery zawodowej, konsekwentne pogłębianie wiedzy i doświadczenia, uzupełnianie potrzebnych kwalifikacji, zainteresowanie nowościami z dziedziny zawodowej. Świadomość własnych słabych i mocnych stron."]

{"sheet":"Zestawienie wag","index":3,"n_rows":25,"n_cols":6,"rows_kept":25,"cut":false,"hidden":false,"merged":[[4,5,5,5],[24,0,24,1],[2,0,2,4],[4,1,5,1],[4,2,5,2],[4,4,5,4],[4,3,5,3]]}
[]
[]
["ZESTAWIENIE WAG DLA POSZCZEGÓLNYCH KATEGORII AKTYWNOŚCI PODLEGAJĄCYCH OCENIE W ZALEŻNOŚCI OD STANOWISKA"]
[null,null,"70-20-10","70-20-10","20-60-20","15-70-15"]
[null,"Kategoria aktywności podlegająca ocenie","adiunkt asystent","Profesor","st. wykład./ wykład.","st. wykład./ wykład."]
[]
["A 1","Publikacje naukowe - kryteria ilościowe",30,30,8,6]
["A2","Publikacje naukowe - kryteria jakościowe",15,15,1,1]
["A3","Udział w projektach badawczych",10,10,5,3]
["A4","Udział w konferencjach naukowych",3,3,1,1]
["A5","Staż naukowy",3,"-",1,1]
["A5","Zagraniczna aktywność wykładowa","-",3,"-","-"]
["A6","Praca na rzecz rozwoju kadry naukowo-dydaktycznej",3,3,1,1]
["A7","Członkostwo w komitetach redakcyjnych czasopism",3,3,1,1]
["A8","Nagrody i awanse naukowe",3,3,2,1]
["B 1","Publikacje dydaktyczne",6,6,30,35]
["B 2","Prace na rzecz studentów",6,6,5,10]
["B 3","Szkolenie podyplomowe",2,2,10,10]
["B 4","Nagrody dydaktyczne",1,1,5,5]
["B5","Opinia studentów",5,5,10,10]
["C 1","Praca na rzecz Uczelni",7,7,15,10]
["C2","Aktywność w towarzystwach i  instytucjach naukowych",3,3,5,5]
[null,"Ocena bezpośredniego przełożonego"]
[]
["Suma wag",null,{"$f":"SUM(C7:C24)","v":100},{"$f":"SUM(D7:D24)","v":100},{"$f":"SUM(E7:E24)","v":100},{"$f":"SUM(F7:F24)","v":100}]

{"sheet":"Regulamin","index":4,"n_rows":0,"n_cols":0,"rows_kept":0,"cut":false,"hidden":false,"merged":[]}

{"sheet":"Załącznik 2","index":5,"n_rows":0,"n_cols":0,"rows_kept":0,"cut":false,"hidden":false,"merged":[]}

{"sheet":"Załacznik 3","index":6,"n_rows":0,"n_cols":0,"rows_kept":0,"cut":false,"hidden":false,"merged":[]}